Department family,Entity,Date,Expense Type,Expense area,Supplier,Transation number,Amount,Narrative
Department for Culture Media and Sport,Department for Culture Media and Sport,02/03/2015,Grant to OGD (Resource),Architecture + heritage progs,The Treasurer to the Queen,0050001595,"33,954.00",MH_GIA_MAR15
Department for Culture Media and Sport,Department for Culture Media and Sport,02/03/2015,Current Grants Private Sector,GIA Architecture+Heritage,Greenwich Foundation for the RN College,0050001599,"102,087.00",ORNC-GIA-MAR15
Department for Culture Media and Sport,Department for Culture Media and Sport,02/03/2015,Grant-in-Aid (DCMS NDPBs),GIA Architecture+Heritage,Churches Conservation Trust,0050001601,"577,000.00",CCT_GIA_MAR15
Department for Culture Media and Sport,Department for Culture Media and Sport,02/03/2015,Grant-in-Aid (DCMS NDPBs),GIA British Film Institute,British Film Institute,0050001602,"1,894,815.00",BFI_GIA_MAR15
Department for Culture Media and Sport,Department for Culture Media and Sport,02/03/2015,Grant-in-Aid (DCMS NDPBs),GIA Museums & Galleries,Wallace Collection,0050001606,"338,500.00",WC_GIA_MAR15
Department for Culture Media and Sport,Department for Culture Media and Sport,02/03/2015,Grant-in-Aid (DCMS NDPBs),GIA Museums & Galleries,Victoria & Albert Museum,0050001607,"1,664,250.00",V&AM_GIA_MAR15
Department for Culture Media and Sport,Department for Culture Media and Sport,02/03/2015,Grant-in-Aid (DCMS NDPBs),GIA Museums & Galleries,Horniman Museum,0050001609,"540,000.00",HM_GIA_MAR15
Department for Culture Media and Sport,Department for Culture Media and Sport,02/03/2015,Grant-in-Aid (DCMS NDPBs),GIA Museums & Galleries,Geffrye Museum,0050001610,"222,207.00",GM_GIA_MAR15
Department for Culture Media and Sport,Department for Culture Media and Sport,02/03/2015,Grant-in-Aid (DCMS NDPBs),GIA Museums & Galleries,Sir John Soane's Museum,0050001611,"197,000.00",SirJSM_GIA_MAR15
Department for Culture Media and Sport,Department for Culture Media and Sport,02/03/2015,Grant-in-Aid (DCMS NDPBs),GIA Museums & Galleries,National Portrait Gallery,0050001612,"673,663.00",NPG_GIA_MAR15
Department for Culture Media and Sport,Department for Culture Media and Sport,02/03/2015,Grant-in-Aid (DCMS NDPBs),GIA Sports bodies,Sport Ground Safety Authority,0050001614,"186,087.00",SGSA_GIA_MAR15
Department for Culture Media and Sport,Department for Culture Media and Sport,02/03/2015,Grant-in-Aid (DCMS NDPBs),GIA Sports bodies,United Kingdom Anti Doping Ltd,0050001615,"538,666.00",UKAD_GIA_MAR15
Department for Culture Media and Sport,Department for Culture Media and Sport,02/03/2015,Grant-in-Aid (DCMS NDPBs),GIA Tourism bodies,VisitBritain,0050001616,"6,944,000.00",VB_GIA_MAR15
Department for Culture Media and Sport,Department for Culture Media and Sport,02/03/2015,Grant-in-Aid (DCMS NDPBs),GIA Architecture+Heritage,National Heritage Memorial Fund,0050001617,"137,512.00",NHMF_GIA_MAR15
Department for Culture Media and Sport,Department for Culture Media and Sport,02/03/2015,Grant-in-Aid (DCMS NDPBs),GIA Sports bodies,Sport England,0050001618,"10,519,000.00",SE_GIA_MAR15
Department for Culture Media and Sport,Department for Culture Media and Sport,02/03/2015,Grant-in-Aid (DCMS NDPBs),OFCOM,OFCOM,0050001619,"6,235,191.00",SPECTRUM MANAGEMENT_GIA_MAR15
Department for Culture Media and Sport,Department for Culture Media and Sport,02/03/2015,Grant-in-Aid (DCMS NDPBs),OFCOM,OFCOM,0050001620,"473,714.00",ORPHAN COSTS_GIA_MAR15
Department for Culture Media and Sport,Department for Culture Media and Sport,02/03/2015,Grant-in-Aid (DCMS NDPBs),OFCOM,OFCOM,0050001621,"373,020.00",SCAP_GIA_MAR15
Department for Culture Media and Sport,Department for Culture Media and Sport,02/03/2015,Grant-in-Aid (DCMS NDPBs),OFCOM,OFCOM,0050001622,"406,229.00",PSST_GIA_MAR15
Department for Culture Media and Sport,Department for Culture Media and Sport,02/03/2015,Grant-in-Aid (DCMS NDPBs),OFCOM,OFCOM,0050001623,"90,117.00",Small Scale DAB costs_ GIA_MAR15
Department for Culture Media and Sport,Department for Culture Media and Sport,02/03/2015,Grant-in-Aid (DCMS NDPBs),GIA Arts bodies,Arts Council of England,0050001625,"37,767,504.00",ACE_GIA_MAR15
Department for Culture Media and Sport,Department for Culture Media and Sport,02/03/2015,Grant-in-Aid (DCMS NDPBs),GIA Museums & Galleries,British Museum,0050001626,"5,400,189.00",BM_GIA_MAR15
Department for Culture Media and Sport,Department for Culture Media and Sport,02/03/2015,Grant-in-Aid (DCMS NDPBs),GIA Museums & Galleries,Natural History Museum,0050001627,"3,619,000.00",NHM_GIA_MAR15
Department for Culture Media and Sport,Department for Culture Media and Sport,02/03/2015,Grant-in-Aid (DCMS NDPBs),GIA Libraries bodies,British Library,0050001628,"8,583,510.00",BL_GIA_MAR15
Department for Culture Media and Sport,Department for Culture Media and Sport,02/03/2015,Grant-in-Aid (DCMS NDPBs),GIA Museums & Galleries,The Royal Armouries,0050001629,"1,449,325.00",RAM_GIA_MAR15
Department for Culture Media and Sport,Department for Culture Media and Sport,02/03/2015,Grant-in-Aid (DCMS NDPBs),GIA Museums & Galleries,National Museums & Galleries Merseyside,0050001630,"1,516,391.00",NML_GIA_MAR15
Department for Culture Media and Sport,Department for Culture Media and Sport,02/03/2015,Grant-in-Aid (DCMS NDPBs),GIA S4C Welsh Fourth Channel,S4C-Sianel Pedwar Cymru-all inv inc. GIA,0050001632,"1,587,000.00",S4C_GIA_MAR15
Department for Culture Media and Sport,Department for Culture Media and Sport,02/03/2015,Grant-in-Aid (DCMS NDPBs),GIA Museums & Galleries,Imperial War Museum,0050001636,"1,223,318.00",Grant in Aid March 2015
Department for Culture Media and Sport,Department for Culture Media and Sport,02/03/2015,Grant to BBC:Home Broadcasting,Home Broadcasting:Grant to BBC,British Broadcasting Corporation,0050001637,"35,420,833.00",BBC GIA MARCH 2015 PT1
Department for Culture Media and Sport,Department for Culture Media and Sport,03/03/2015,Management Consultants,Broadband Delivery UK (Admin),KPMG LLP,0030038993,"21,104.82",SUPER CONNECTED CITIES (URBAN)
Department for Culture Media and Sport,Department for Culture Media and Sport,03/03/2015,VAT-Recoverable Contracted-Out,Misc Balance Sheet,KPMG LLP,0030038993,"4,220.96",SUPER CONNECTED CITIES (URBAN)
Department for Culture Media and Sport,Department for Culture Media and Sport,03/03/2015,Equalities Helpline Service,GEO Equality Support Helpline,Sitel (UK) Ltd,0030038995,"146,669.75",BILLING PERIOD JANUARY 2015
Department for Culture Media and Sport,Department for Culture Media and Sport,03/03/2015,VAT-Recoverable Contracted-Out,Misc Balance Sheet,Sitel (UK) Ltd,0030038995,"29,333.94",BILLING PERIOD JANUARY 2015
Department for Culture Media and Sport,Department for Culture Media and Sport,03/03/2015,Research,EAU Policy Research + Eval,Office for National Statistics,0030039006,"26,754.00",FEES FOR SPONSORED QUESTION 2015 IPS SUR
Department for Culture Media and Sport,Department for Culture Media and Sport,03/03/2015,VAT-Recoverable Contracted-Out,Misc Balance Sheet,Office for National Statistics,0030039006,"5,350.80",FEES FOR SPONSORED QUESTION 2015 IPS SUR
Department for Culture Media and Sport,Department for Culture Media and Sport,04/03/2015,Publicity,BDUK Marketing in Admin Costs,M4C,0030039011,"166,269.53",Media buying for BDUK National Marketing Campaign
Department for Culture Media and Sport,Department for Culture Media and Sport,04/03/2015,VAT-Recoverable Contracted-Out,Misc Balance Sheet,M4C,0030039011,"33,221.17",Media buying for BDUK National Marketing Campaign
Department for Culture Media and Sport,Department for Culture Media and Sport,04/03/2015,Publicity,BDUK Marketing in Admin Costs,M4C,0030039012,"39,111.61",Media buying for BDUK National Marketing Campaign
Department for Culture Media and Sport,Department for Culture Media and Sport,04/03/2015,VAT-Recoverable Contracted-Out,Misc Balance Sheet,M4C,0030039012,"7,814.50",Media buying for BDUK National Marketing Campaign
Department for Culture Media and Sport,Department for Culture Media and Sport,04/03/2015,Publicity,BDUK Marketing in Admin Costs,M4C,0030039013,"848,332.91",Media buying for BDUK National Marketing Campaign
Department for Culture Media and Sport,Department for Culture Media and Sport,04/03/2015,VAT-Recoverable Contracted-Out,Misc Balance Sheet,M4C,0030039013,"169,497.09",Media buying for BDUK National Marketing Campaign
Department for Culture Media and Sport,Department for Culture Media and Sport,04/03/2015,Publicity,BDUK Marketing in Admin Costs,M4C,0030039014,"1,404,048.98",Media buying for BDUK National Marketing Campaign
Department for Culture Media and Sport,Department for Culture Media and Sport,04/03/2015,VAT-Recoverable Contracted-Out,Misc Balance Sheet,M4C,0030039014,"280,529.27",Media buying for BDUK National Marketing Campaign
Department for Culture Media and Sport,Department for Culture Media and Sport,04/03/2015,Capital Grants to LAs,Broadband UK Capital+Programme,Essex County Council,0030039016,"1,060,185.00",BDUK Superfast Britain milestone grant claim payment
Department for Culture Media and Sport,Department for Culture Media and Sport,04/03/2015,Capital Grants to LAs,Broadband UK Capital+Programme,Durham County Council,0030039017,"1,591,677.00",BDUK Superfast Britain milestone grant claim payment
Department for Culture Media and Sport,Department for Culture Media and Sport,04/03/2015,Capital Grants to LAs,Broadband UK Capital+Programme,Norfolk County Council,0030039018,"2,690,713.00",BDUK Superfast Britain milestone grant claim payment
Department for Culture Media and Sport,Department for Culture Media and Sport,04/03/2015,Capital Grant Private Sector,Broadband UK Capital+Programme,Call Flow Solutions Ltd,0030039021,"36,128.00",BDUK Market Test Pilots milestone payment
Department for Culture Media and Sport,Department for Culture Media and Sport,04/03/2015,Capital Grants to LAs,Broadband UK Capital+Programme,Staffordshire County Council,0030039030,"1,808,252.00",BDUK Superfast Britain milestone grant claim payment
Department for Culture Media and Sport,Department for Culture Media and Sport,04/03/2015,Grant-in-Aid (DCMS NDPBs),GIA Sports bodies,United Kingdom Sports Council,0050001600,"6,441,099.00",UKSPORT_GIA_MAR15
Department for Culture Media and Sport,Department for Culture Media and Sport,04/03/2015,Grant-in-Aid (DCMS NDPBs),GIA to Equalities Bodies,GIA - EHRC,0050001604,"2,021,777.00",EHRC_GIA_MAR15 CORE&TRANS
Department for Culture Media and Sport,Department for Culture Media and Sport,04/03/2015,Grant-in-Aid (DCMS NDPBs),GIA to Equalities Bodies,GIA - EHRC,0050001605,"361,140.00",EHRC_DESC.PROG_GIA_MAR15
Department for Culture Media and Sport,Department for Culture Media and Sport,04/03/2015,Grant-in-Aid (DCMS NDPBs),GIA Museums & Galleries,National Maritime Museum,0050001608,"2,015,934.00",RMG(NMM)_GIA_MAR15
Department for Culture Media and Sport,Department for Culture Media and Sport,04/03/2015,Grant-in-Aid (DCMS NDPBs),GIA Gambling + Lottery bodies,National Lottery Commission,0050001613,"314,188.00",NLC_GIA_MAR15
Department for Culture Media and Sport,Department for Culture Media and Sport,04/03/2015,Grant-in-Aid (DCMS NDPBs),GIA Museums & Galleries,Tate Gallery,0050001631,"2,679,087.00",TATE_GIA_MAR15
Department for Culture Media and Sport,Department for Culture Media and Sport,04/03/2015,Grant-in-Aid (DCMS NDPBs),GIA Museums & Galleries,National Gallery,0050001633,"4,244,797.00",NG_GIA_MAR15
Department for Culture Media and Sport,Department for Culture Media and Sport,04/03/2015,Grant-in-Aid (DCMS NDPBs),GIA Architecture+Heritage,English Heritage,0050001635,"92,547,000.00",Grant-in-Aid March 2015
Department for Culture Media and Sport,Department for Culture Media and Sport,04/03/2015,Grant-in-Aid (DCMS NDPBs),GIA Museums & Galleries,Science Museum Group (ex-NMSI),0050001640,"3,847,000.00",SMG_GIA_MAR15
Department for Culture Media and Sport,Department for Culture Media and Sport,05/03/2015,Capital Grant Private Sector,Broadband UK Capital+Programme,Call Flow Solutions Ltd,0030039020,"35,885.00",BDUK Market Test Pilots milestone payment
Department for Culture Media and Sport,Department for Culture Media and Sport,05/03/2015,Research,EAU Taking Part Survey,TNS UK LTD,0030039027,"53,426.00",Taking Part Child Boost
Department for Culture Media and Sport,Department for Culture Media and Sport,05/03/2015,VAT-Recoverable Contracted-Out,Misc Balance Sheet,TNS UK LTD,0030039027,"10,685.20",Taking Part Child Boost
Department for Culture Media and Sport,Department for Culture Media and Sport,05/03/2015,Grant to BBC:Home Broadcasting,Home Broadcasting:Grant to BBC,British Broadcasting Corporation,0050001638,"35,420,833.00",BBC GIA MARCH 2015 PT2
Department for Culture Media and Sport,Department for Culture Media and Sport,06/03/2015,Capital Grant Private Sector,Broadband UK Capital+Programme,Cybermoor Services Ltd,0030039019,"81,818.00",BDUK Market Test Pilots milestone payment
Department for Culture Media and Sport,Department for Culture Media and Sport,06/03/2015,DCMS-Wolfson Museums & Gallery Improvement Fund,Misc Balance Sheet,The University of Manchester,0030039038,"200,000.00",Wolfson Grant Round 2 Feb15
Department for Culture Media and Sport,Department for Culture Media and Sport,06/03/2015,DCMS-Wolfson Museums & Gallery Improvement Fund,Misc Balance Sheet,Norfolk Museums Services,0030039041,"147,106.84",WOLFSON GRANT ROUND2 FEB15
Department for Culture Media and Sport,Department for Culture Media and Sport,06/03/2015,DCMS-Wolfson Museums & Gallery Improvement Fund,Misc Balance Sheet,Beamish Museum Ltd,0030039042,"27,071.00",WOLFSON GRANT ROUND 2 FEB15
Department for Culture Media and Sport,Department for Culture Media and Sport,06/03/2015,DCMS-Wolfson Museums & Gallery Improvement Fund,Misc Balance Sheet,Durham University,0030039044,"65,502.55",WOLFSON GRANT ROUND 2 MAR15
Department for Culture Media and Sport,Department for Culture Media and Sport,06/03/2015,DCMS-Wolfson Museums & Gallery Improvement Fund,Misc Balance Sheet,Compton Verney,0030039046,"71,635.09",WOLFSON GRANT ROUND 2 MAR15
Department for Culture Media and Sport,Department for Culture Media and Sport,06/03/2015,DCMS-Wolfson Museums & Gallery Improvement Fund,Misc Balance Sheet,UCL Museums & Galleries,0030039047,"40,000.00",WOLFSON GRANT ROUND2 MAR15
Department for Culture Media and Sport,Department for Culture Media and Sport,06/03/2015,DCMS-Wolfson Museums & Gallery Improvement Fund,Misc Balance Sheet,The Natural History Museum,0030039055,"38,627.96",WOLFSON GRANT ROUND2 MAR15
Department for Culture Media and Sport,Department for Culture Media and Sport,06/03/2015,DCMS-Wolfson Museums & Gallery Improvement Fund,Misc Balance Sheet,London Transport Museum,0030039058,"41,685.50",WOLFSON GRANT ROUND 2  APR15
Department for Culture Media and Sport,Department for Culture Media and Sport,06/03/2015,DCMS-Wolfson Museums & Gallery Improvement Fund,Misc Balance Sheet,Tyne and Wear Museums,0030039061,"60,000.00",WOLFSON GRANT ROUND2 FEB15
Department for Culture Media and Sport,Department for Culture Media and Sport,06/03/2015,Capital Grants to LAs,Broadband UK Capital+Programme,Shropshire Council,0030039064,"1,088,974.00",BDUK Superfast Britain milestone grant claim payment
Department for Culture Media and Sport,Department for Culture Media and Sport,06/03/2015,Capital Grants to LAs,Broadband UK Capital+Programme,West Sussex County Council,0030039065,"1,298,298.00",BDUK Superfast Britain milestone grant claim payment
Department for Culture Media and Sport,Department for Culture Media and Sport,06/03/2015,Capital Grants to LAs,Broadband UK Capital+Programme,Northamptonshire County Council,0030039066,"1,133,090.00",BDUK Superfast Britain milestone grant claim payment
Department for Culture Media and Sport,Department for Culture Media and Sport,06/03/2015,Capital Grants to LAs,Broadband UK Capital+Programme,Manchester City Council,0030039067,"111,357.00",BDUK Superconnected Cities Connection Vouchers Claim
Department for Culture Media and Sport,Department for Culture Media and Sport,06/03/2015,Capital Grants to LAs,Broadband UK Capital+Programme,Salford City Council,0030039068,"1,114,805.00",BDUK Superconnected Cities WIFI grant
Department for Culture Media and Sport,Department for Culture Media and Sport,06/03/2015,Capital Grants to LAs,Broadband UK Capital+Programme,Newcastle City Council,0030039069,"114,687.00",BDUK Superconnected Cities Connection Vouchers Claim
Department for Culture Media and Sport,Department for Culture Media and Sport,06/03/2015,Capital Grants to LAs,Broadband UK Capital+Programme,Bristol City Council,0030039070,"1,242,658.00",BDUK Superconnected Cities Other Grants
Department for Culture Media and Sport,Department for Culture Media and Sport,06/03/2015,Capital Grants to LAs,Broadband UK Capital+Programme,Greater London Authority,0030039072,"1,126,038.30",BDUK Superconnected Cities Connection Vouchers Claim
Department for Culture Media and Sport,Department for Culture Media and Sport,06/03/2015,Capital Grants to LAs,Broadband UK Capital+Programme,Derby City Council,0030039074,"310,954.00",BDUK Superconnected Cities WIFI grant
Department for Culture Media and Sport,Department for Culture Media and Sport,06/03/2015,Capital Grants to LAs,Broadband UK Capital+Programme,Manchester City Council,0030039103,"697,240.00",BDUK Superconnected Cities Connection Vouchers Claim
Department for Culture Media and Sport,Department for Culture Media and Sport,06/03/2015,Capital Grants to LAs,Broadband UK Capital+Programme,Leeds City Council,0030039109,"999,781.00",BDUK Superfast Britain milestone grant claim payment
Department for Culture Media and Sport,Department for Culture Media and Sport,06/03/2015,Capital Grants to LAs,Broadband UK Capital+Programme,Suffolk County Council,0030039110,"3,286,354.00",BDUK Superfast Britain milestone grant claim payment
Department for Culture Media and Sport,Department for Culture Media and Sport,06/03/2015,Current Grants Private Sector,Listed Places of Worship Grants,Topmark Claims Management Ltd,0030039111,"473,596.95",Funding for LPW 250215_050315
Department for Culture Media and Sport,Department for Culture Media and Sport,09/03/2015,Finance & Accounting Services,Finance,Liberata UK Ltd,0030039005,"33,947.49",DCMS CHARGES
Department for Culture Media and Sport,Department for Culture Media and Sport,09/03/2015,VAT-Recoverable Contracted-Out,Misc Balance Sheet,Liberata UK Ltd,0030039005,"6,789.50",DCMS CHARGES
Department for Culture Media and Sport,Department for Culture Media and Sport,09/03/2015,Temp staff Interim managers,Broadband Delivery UK (Admin),Capita Bus Services (Interim Staff),0030039083,"75,470.28",Specialist advice W/E 18/10/14 -> 28/2/15
Department for Culture Media and Sport,Department for Culture Media and Sport,09/03/2015,Temp staff Interim managers,Broadband Delivery UK (Admin),Capita Bus Services (Interim Staff),0030039084,"93,612.31",Specialist advice W/18/10/14 -> 28/2/15
Department for Culture Media and Sport,Department for Culture Media and Sport,09/03/2015,Temp staff Interim managers,Broadband Delivery UK (Admin),Capita Bus Services (Interim Staff),0030039094,"28,395.23",Specialist advice W/E 31/1/15 -> 28/2/15
Department for Culture Media and Sport,Department for Culture Media and Sport,09/03/2015,Capital Grants to LAs,Broadband UK Capital+Programme,Oxfordshire County Council,0030039144,"1,603,371.00",BDUK Superfast Britain milestone grant claim payment
Department for Culture Media and Sport,Department for Culture Media and Sport,09/03/2015,Capital Grants to LAs,Broadband UK Capital+Programme,Warwickshire County Council,0030039153,"1,136,156.00",BDUK Superfast Britain milestone grant claim payment
Department for Culture Media and Sport,Department for Culture Media and Sport,09/03/2015,VAT-Recoverable Contracted-Out,Misc Balance Sheet,Berwin Leighton Paisner LLP,0030039154,"8,568.14",ODA_145-Fees  rectification of Leases
Department for Culture Media and Sport,Department for Culture Media and Sport,09/03/2015,External Legal Costs - Other,ODA Residuary Functions,Berwin Leighton Paisner LLP,0030039154,"42,963.70",ODA_145-Fees  rectification of Leases
Department for Culture Media and Sport,Department for Culture Media and Sport,09/03/2015,Capital Grants to LAs,Broadband UK Capital+Programme,Wiltshire Council,0030039155,"846,617.00",BDUK Superfast Britain milestone grant claim payment
Department for Culture Media and Sport,Department for Culture Media and Sport,09/03/2015,Capital Grants to LAs,Broadband UK Capital+Programme,Cambridgeshire CC,0030039156,"841,879.00",BDUK Superfast Britain milestone grant claim payment
Department for Culture Media and Sport,Department for Culture Media and Sport,10/03/2015,Publicity,BDUK Marketing in Admin Costs,Carat UK,0030039162,"110,573.00",CARAT Planning Costs
Department for Culture Media and Sport,Department for Culture Media and Sport,10/03/2015,VAT-Recoverable Contracted-Out,Misc Balance Sheet,Carat UK,0030039162,"22,114.60",CARAT Planning Costs
Department for Culture Media and Sport,Department for Culture Media and Sport,10/03/2015,Capital Grants to LAs,Broadband UK Capital+Programme,North Lincolnshire Council,0030039177,"474,381.00",BDUK Superfast Britain milestone grant claim payment
Department for Culture Media and Sport,Department for Culture Media and Sport,10/03/2015,Capital Grants to LAs,Broadband UK Capital+Programme,West Berkshire Council,0030039178,"791,644.00",BDUK Superfast Britain milestone grant claim payment
Department for Culture Media and Sport,Department for Culture Media and Sport,10/03/2015,Capital Grants to LAs,Broadband UK Capital+Programme,Worcestershire County Council,0030039186,"1,310,271.00",BDUK Superfast Britain milestone grant claim payment
Department for Culture Media and Sport,Department for Culture Media and Sport,10/03/2015,Capital Grants to LAs,Broadband UK Capital+Programme,Kent County Council,0030039187,"2,584,376.00",BDUK Superfast Britain milestone grant claim payment
Department for Culture Media and Sport,Department for Culture Media and Sport,10/03/2015,Capital Grants to LAs,Broadband UK Capital+Programme,East Sussex County Council,0030039189,"1,161,303.00",BDUK Superfast Britain milestone grant claim payment
Department for Culture Media and Sport,Department for Culture Media and Sport,11/03/2015,IT Capital Additions,Information Technology Services,Telefonica O2 UK Ltd,0030039160,"74,471.89",HARDWARE CHARGES FOR O2
Department for Culture Media and Sport,Department for Culture Media and Sport,11/03/2015,VAT-Recoverable Contracted-Out,Misc Balance Sheet,Telefonica O2 UK Ltd,0030039160,"14,894.38",HARDWARE CHARGES FOR O2
Department for Culture Media and Sport,Department for Culture Media and Sport,11/03/2015,DCMS-Wolfson Museums & Gallery Improvement Fund,Misc Balance Sheet,Black Country Living Museum Trust,0030039174,"39,500.00",WOLFSON GRANT ROUND2 FEB15
Department for Culture Media and Sport,Department for Culture Media and Sport,11/03/2015,DCMS-Wolfson Museums & Gallery Improvement Fund,Misc Balance Sheet,The Bowes Museum,0030039176,"212,335.00",WOLFSON GRANT ROUND 2 FEB15
Department for Culture Media and Sport,Department for Culture Media and Sport,11/03/2015,Current Grants Private Sector,GEO Other Ongoing Programmes,SFEDI (meet a mentor),0030039199,"25,994.00","Meet a Mentor Event, Grant.Mar15"
Department for Culture Media and Sport,Department for Culture Media and Sport,11/03/2015,Capital Grants to LAs,Broadband UK Capital+Programme,Hampshire County Council,0030039222,"1,296,891.00",BDUK Superfast Britain milestone grant claim payment
Department for Culture Media and Sport,Department for Culture Media and Sport,11/03/2015,Grant to BBC:Home Broadcasting,Home Broadcasting:Grant to BBC,British Broadcasting Corporation,0050001639,"141,683,333.00",BBC GIA MARCH 2015 PT3
Department for Culture Media and Sport,Department for Culture Media and Sport,12/03/2015,Grant to OGD (Resource),DCMS contribution toPFI grants,Dept for Communities & Local Govt,0030039193,"7,222,037.00",Area Based Grant Cont frm DCMS Q413MAR15
Department for Culture Media and Sport,Department for Culture Media and Sport,12/03/2015,DCMS-Wolfson Museums & Gallery Improvement Fund,Misc Balance Sheet,Weald & Downland Open Air Museum,0030039194,"250,000.00",WOLFSON GRANT ROUND 2 FEB15
Department for Culture Media and Sport,Department for Culture Media and Sport,12/03/2015,DCMS-Wolfson Museums & Gallery Improvement Fund,Misc Balance Sheet,Horniman Museum,0030039195,"34,540.13",WOLFSON GRANT ROUND 2 FEB15
Department for Culture Media and Sport,Department for Culture Media and Sport,12/03/2015,Capital Grant Private Sector,Broadband UK Capital+Programme,Arqiva Ltd,0030039198,"517,208.75",Mobile Infrastructure Project Grant Claim:January 2015
Department for Culture Media and Sport,Department for Culture Media and Sport,12/03/2015,Current Grants Private Sector,Creative Skillset,Creative Skillset SIF,0030039210,"2,757,116.73",Skills Investment Fund: Claim to February 2015
Department for Culture Media and Sport,Department for Culture Media and Sport,12/03/2015,Capital Grants to LAs,Broadband UK Capital+Programme,East Cheshire BC Council Fund Account,0030039219,"482,165.00",BDUK Superfast Britain milestone grant claim payment
Department for Culture Media and Sport,Department for Culture Media and Sport,12/03/2015,Publicity,BDUK Marketing in Admin Costs,Carat UK,0030039223,"59,572.45",Media buying for BDUK National Marketing Campaign
Department for Culture Media and Sport,Department for Culture Media and Sport,12/03/2015,VAT-Recoverable Contracted-Out,Misc Balance Sheet,Carat UK,0030039223,"11,903.38",Media buying for BDUK National Marketing Campaign
Department for Culture Media and Sport,Department for Culture Media and Sport,12/03/2015,Publicity,BDUK Marketing in Admin Costs,Carat UK,0030039224,"83,565.49",Media buying for BDUK National Marketing Campaign
Department for Culture Media and Sport,Department for Culture Media and Sport,12/03/2015,VAT-Recoverable Contracted-Out,Misc Balance Sheet,Carat UK,0030039224,"16,696.90",Media buying for BDUK National Marketing Campaign
Department for Culture Media and Sport,Department for Culture Media and Sport,12/03/2015,Publicity,BDUK Marketing in Admin Costs,Carat UK,0030039225,"268,862.86",Media buying for BDUK National Marketing Campaign
Department for Culture Media and Sport,Department for Culture Media and Sport,12/03/2015,VAT-Recoverable Contracted-Out,Misc Balance Sheet,Carat UK,0030039225,"53,720.48",Media buying for BDUK National Marketing Campaign
Department for Culture Media and Sport,Department for Culture Media and Sport,12/03/2015,Publicity,BDUK Marketing in Admin Costs,Carat UK,0030039227,"42,843.32",Media buying for BDUK National Marketing Campaign
Department for Culture Media and Sport,Department for Culture Media and Sport,12/03/2015,VAT-Recoverable Contracted-Out,Misc Balance Sheet,Carat UK,0030039227,"8,560.36",Media buying for BDUK National Marketing Campaign
Department for Culture Media and Sport,Department for Culture Media and Sport,12/03/2015,Publicity,BDUK Marketing in Admin Costs,Carat UK,0030039235,"292,374.38",Media buying for BDUK National Marketing Campaign
Department for Culture Media and Sport,Department for Culture Media and Sport,12/03/2015,VAT-Recoverable Contracted-Out,Misc Balance Sheet,Carat UK,0030039235,"58,418.23",Media buying for BDUK National Marketing Campaign
Department for Culture Media and Sport,Department for Culture Media and Sport,12/03/2015,Publicity,BDUK Marketing in Admin Costs,Carat UK,0030039236,"246,746.28",Media buying for BDUK National Marketing Campaign
Department for Culture Media and Sport,Department for Culture Media and Sport,12/03/2015,VAT-Recoverable Contracted-Out,Misc Balance Sheet,Carat UK,0030039236,"49,301.39",Media buying for BDUK National Marketing Campaign
Department for Culture Media and Sport,Department for Culture Media and Sport,12/03/2015,Publicity,BDUK Marketing in Admin Costs,Carat UK,0030039239,"102,827.95",Media buying for BDUK National Marketing Campaign
Department for Culture Media and Sport,Department for Culture Media and Sport,12/03/2015,VAT-Recoverable Contracted-Out,Misc Balance Sheet,Carat UK,0030039239,"20,546.35",Media buying for BDUK National Marketing Campaign
Department for Culture Media and Sport,Department for Culture Media and Sport,12/03/2015,Temp staff Interim managers,ODA Residuary Functions,Belgrave Eccleston Ltd,0030039250,"38,415.00",ODA_173-Consultancy Services Per01.02.15
Department for Culture Media and Sport,Department for Culture Media and Sport,12/03/2015,Capital Grants to LAs,Broadband UK Capital+Programme,Portsmouth City Council,0030039268,"81,303.00",BDUK Superconnected Cities WIFI grant
Department for Culture Media and Sport,Department for Culture Media and Sport,12/03/2015,Current Grants Private Sector,Listed Places of Worship Grants,Topmark Claims Management Ltd,0030039277,"549,000.00",Funding for LPW 050315_110315
Department for Culture Media and Sport,Department for Culture Media and Sport,13/03/2015,DCMS-Wolfson Museums & Gallery Improvement Fund,Misc Balance Sheet,Derby Museums,0030039175,"78,066.41",WOLFSON GRANT ROUND 2 FEB15
Department for Culture Media and Sport,Department for Culture Media and Sport,13/03/2015,Current Grants Private Sector,International programme spend,The British Council,0030039262,"37,500.00",2014 Partnership income for running cost
Department for Culture Media and Sport,Department for Culture Media and Sport,13/03/2015,Olympic Delivery Authority closedown liabilities,ODA Residuary Functions,Ernst & Young LLP,0030039290,"26,102.40",ODA_129- Fees re Risk & Audit function
Department for Culture Media and Sport,Department for Culture Media and Sport,13/03/2015,DCMS-Wolfson Museums & Gallery Improvement Fund,Misc Balance Sheet,National Museums Liverpool,0030039321,"300,000.00",WOLFSON GRANT ROUND 2 FEB15
Department for Culture Media and Sport,Department for Culture Media and Sport,13/03/2015,Temp staff Interim managers,Broadband Delivery UK (Admin),Capita Bus Services (Interim Staff),0030039330,"50,910.13",Specialist advice N W/E 15.2 .14 -> 31/1/15
Department for Culture Media and Sport,Department for Culture Media and Sport,13/03/2015,Temp staff Interim managers,Broadband Delivery UK (Admin),Capita Bus Services (Interim Staff),0030039331,"40,270.73",Specialist advice W/E 13/12/14 -> 28/2/15
Department for Culture Media and Sport,Department for Culture Media and Sport,13/03/2015,Olympic Delivery Authority closedown liabilities,ODA Residuary Functions,Lend Lease Europe Ltd,0030039357,"350,661.91",Pre-games INF retention
Department for Culture Media and Sport,Department for Culture Media and Sport,13/03/2015,Olympic Delivery Authority closedown liabilities,ODA Residuary Functions,Lend Lease Europe Ltd,0030039358,"3,802,258.97",Pre-Games retention
Department for Culture Media and Sport,Department for Culture Media and Sport,13/03/2015,Olympic Delivery Authority closedown liabilities,ODA Residuary Functions,Lend Lease Europe Ltd,0030039359,"2,258,590.37",Pre-games accrual
Department for Culture Media and Sport,Department for Culture Media and Sport,13/03/2015,Grant-in-Aid (DCMS NDPBs),GIA Arts bodies,Arts Council of England,0050001641,"35,000.00",ACE_GIA_MAR15
Department for Culture Media and Sport,Department for Culture Media and Sport,16/03/2015,Other Capital Grants,Spectrum Clearance Programme,CFOA National Resilience Ltd,0030039372,"105,863.76",CNR LTD GRANT FEB15
Department for Culture Media and Sport,Department for Culture Media and Sport,18/03/2015,Building Maintenance,Estates & Property Services,Atos IT Services UK Limited,0030038115,"35,615.50",DCMS New Service - October 2014
Department for Culture Media and Sport,Department for Culture Media and Sport,18/03/2015,VAT-Recoverable Contracted-Out,Misc Balance Sheet,Atos IT Services UK Limited,0030038115,"7,123.10",DCMS New Service - October 2014
Department for Culture Media and Sport,Department for Culture Media and Sport,18/03/2015,IT Support,Information Technology Services,Atos IT Services UK Limited,0030038478,"24,514.00",Sun Account/Prophix
Department for Culture Media and Sport,Department for Culture Media and Sport,18/03/2015,VAT-Recoverable Contracted-Out,Misc Balance Sheet,Atos IT Services UK Limited,0030038478,"4,902.80",Sun Account/Prophix
Department for Culture Media and Sport,Department for Culture Media and Sport,18/03/2015,Current Grants to LAs,GEO Other Ongoing Programmes,Surrey County Council,0030039273,"37,170.42",11-MAR-15-GEO-Women+BBand Claim
Department for Culture Media and Sport,Department for Culture Media and Sport,18/03/2015,Current Grants to LAs,GEO Other Ongoing Programmes,East Sussex County Council,0030039361,"37,550.00",12-MAR-15-GEO-Women +BBand Claim
Department for Culture Media and Sport,Department for Culture Media and Sport,18/03/2015,Current Grants to LAs,GEO Other Ongoing Programmes,Newcastle City Council,0030039364,"44,277.00",05-MAR-15-GEO-Women+BBand Claim
Department for Culture Media and Sport,Department for Culture Media and Sport,18/03/2015,Current Grants to LAs,GEO Other Ongoing Programmes,Kent County Council,0030039381,"43,422.71",13.3.15_GEO_Women&BBand_Claim
Department for Culture Media and Sport,Department for Culture Media and Sport,18/03/2015,Current Grants to LAs,GEO Other Ongoing Programmes,Herefordshire County Council,0030039382,"32,083.19",13.3.15_GEO-Women & BBand_claim
Department for Culture Media and Sport,Department for Culture Media and Sport,18/03/2015,Current Grants to LAs,GEO Other Ongoing Programmes,East Cheshire BC Council Fund Account,0030039383,"30,000.00",9.3.15_GEO_Women&BBand claim
Department for Culture Media and Sport,Department for Culture Media and Sport,18/03/2015,Invest to Save -Current Grants,GOE managed programme costs,Sport England,0030039385,"178,000.00",Relocatable Pools 14-15 Grant
Department for Culture Media and Sport,Department for Culture Media and Sport,18/03/2015,DCMS-Wolfson Museums & Gallery Improvement Fund,Misc Balance Sheet,Leeds Museums & Galleries,0030039386,"150,000.00",Wolfson Grant Round 2 Final
Department for Culture Media and Sport,Department for Culture Media and Sport,18/03/2015,DCMS-Wolfson Museums & Gallery Improvement Fund,Misc Balance Sheet,Sheffield Galleries & Museums Trust,0030039387,"110,000.00",Wolfson Grant Round 2 Mar15
Department for Culture Media and Sport,Department for Culture Media and Sport,18/03/2015,DCMS-Wolfson Museums & Gallery Improvement Fund,Misc Balance Sheet,Jewish Museum,0030039388,"40,000.00",WOLFSON GRANT ROUND 2 MAR15
Department for Culture Media and Sport,Department for Culture Media and Sport,18/03/2015,DCMS-Wolfson Museums & Gallery Improvement Fund,Misc Balance Sheet,University of Reading,0030039389,"175,000.00",WOLFSON GRANT ROUND 2 FEB15
Department for Culture Media and Sport,Department for Culture Media and Sport,18/03/2015,DCMS-Wolfson Museums & Gallery Improvement Fund,Misc Balance Sheet,University of Oxford Development Trust,0030039390,"65,000.00",WOLFSON GRANT ROUND 2 FEB15
Department for Culture Media and Sport,Department for Culture Media and Sport,18/03/2015,DCMS-Wolfson Museums & Gallery Improvement Fund,Misc Balance Sheet,University of Oxford Development Trust,0030039391,"100,000.00",WOLFSON GRANT ROUND 2 MAR15
Department for Culture Media and Sport,Department for Culture Media and Sport,18/03/2015,DCMS-Wolfson Museums & Gallery Improvement Fund,Misc Balance Sheet,University of Oxford Development Trust,0030039392,"40,000.00",WOLFSON GRANT ROUND 2 MAR15
Department for Culture Media and Sport,Department for Culture Media and Sport,18/03/2015,Capital Grants to LAs,Broadband UK Capital+Programme,Birmingham City Council,0030039408,"149,265.00",BDUK Superconnected Cities Connection Vouchers Claim
Department for Culture Media and Sport,Department for Culture Media and Sport,18/03/2015,Capital Grants to LAs,Broadband UK Capital+Programme,Leeds City Council,0030039409,"49,293.00",BDUK Superconnected Cities WIFI grant
Department for Culture Media and Sport,Department for Culture Media and Sport,18/03/2015,Capital Grants to LAs,Broadband UK Capital+Programme,Central Bedfordshire Council,0030039410,"620,943.00",BDUK Superfast Britain milestone grant claim payment
Department for Culture Media and Sport,Department for Culture Media and Sport,18/03/2015,Capital Grants to LAs,Broadband UK Capital+Programme,Stockport Metropolitan Borough Council,0030039411,"590,344.00",BDUK Superfast Britain milestone grant claim payment
Department for Culture Media and Sport,Department for Culture Media and Sport,18/03/2015,Capital Grants to LAs,Broadband UK Capital+Programme,Lancashire County Council,0030039412,"1,324,078.00",BDUK Superfast Britain milestone grant claim payment
Department for Culture Media and Sport,Department for Culture Media and Sport,18/03/2015,Capital Grants to LAs,Broadband UK Capital+Programme,Hertfordshire County Council,0030039413,"1,274,021.00",BDUK Superfast Britain milestone grant claim payment
Department for Culture Media and Sport,Department for Culture Media and Sport,18/03/2015,Capital Grants to LAs,Broadband UK Capital+Programme,Lincolnshire County Council,0030039414,"2,067,342.16",BDUK Superfast Britain milestone grant claim payment
Department for Culture Media and Sport,Department for Culture Media and Sport,18/03/2015,Grant to BBC:Home Broadcasting,Home Broadcasting:Grant to BBC,British Broadcasting Corporation,0050001671,"20,000,000.00",BBC GIA MARCH 2015 PT4
Department for Culture Media and Sport,Department for Culture Media and Sport,19/03/2015,Office Accommodation Rent,Estates & Property Services,Lazari Investments Ltd,0030038915,"215,550.00","2-4 179A Tottenham Ct Rd, Qtr Rental"
Department for Culture Media and Sport,Department for Culture Media and Sport,19/03/2015,Equalities Helpline Service,GEO Equality Support Helpline,Sitel (UK) Ltd,0030039394,"148,702.72",Billing Period: February 2015
Department for Culture Media and Sport,Department for Culture Media and Sport,19/03/2015,VAT-Recoverable Contracted-Out,Misc Balance Sheet,Sitel (UK) Ltd,0030039394,"29,740.54",Billing Period: February 2015
Department for Culture Media and Sport,Department for Culture Media and Sport,19/03/2015,Olympic Delivery Authority closedown liabilities,ODA Residuary Functions,National Audit Office,0030039395,"60,000.00",Audit Olym. Del. Author. fin. state2014
Department for Culture Media and Sport,Department for Culture Media and Sport,19/03/2015,Current Grants to LAs,GEO Other Ongoing Programmes,Somerset County Council,0030039402,"50,000.00",10-MAR-15-GEO-Women+BBand-Claim
Department for Culture Media and Sport,Department for Culture Media and Sport,19/03/2015,Current Grants to LAs,GEO Other Ongoing Programmes,Stockport Metropolitan Borough Council,0030039403,"29,329.95",16-MAR-15-GEO-Women+BBand-Claim
Department for Culture Media and Sport,Department for Culture Media and Sport,19/03/2015,Current Grants to LAs,GEO Other Ongoing Programmes,Central Bedfordshire Council,0030039468,"52,900.00",16-MAR-15-GEO-Women+BBand-Claim
Department for Culture Media and Sport,Department for Culture Media and Sport,19/03/2015,Olympic Delivery Authority closedown liabilities,ODA Residuary Functions,Ideal Response Group Ltd,0030039470,"132,299.05",ODA - village defect mgt Accrued Expense
Department for Culture Media and Sport,Department for Culture Media and Sport,19/03/2015,General Repairs,ODA Residuary Functions,Ideal Response Group Ltd,0030039474,"136,842.66",ODA_131 Payment 4 - December
Department for Culture Media and Sport,Department for Culture Media and Sport,19/03/2015,General Repairs,ODA Residuary Functions,Ideal Response Group Ltd,0030039477,"146,086.96",ODA_165 Payment 5 - January
Department for Culture Media and Sport,Department for Culture Media and Sport,19/03/2015,Current Grants Private Sector,Listed Places of Worship Grants,Topmark Claims Management Ltd,0030039482,"548,000.00",Funding for LPW 110315_180315
Department for Culture Media and Sport,Department for Culture Media and Sport,23/03/2015,Legal Advice,Broadband Delivery UK (Admin),Pinsent Masons,0030039378,"21,947.55",PINSENTS SUPERFAST FEB15
Department for Culture Media and Sport,Department for Culture Media and Sport,23/03/2015,VAT-Recoverable Contracted-Out,Misc Balance Sheet,Pinsent Masons,0030039378,"4,389.51",PINSENTS SUPERFAST FEB15
Department for Culture Media and Sport,Department for Culture Media and Sport,23/03/2015,Legal Advice,Broadband Delivery UK (Admin),Pinsent Masons,0030039379,"24,790.03",BROADBAND DELIVERY (UK) JAN15
Department for Culture Media and Sport,Department for Culture Media and Sport,23/03/2015,VAT-Recoverable Contracted-Out,Misc Balance Sheet,Pinsent Masons,0030039379,"4,958.01",BROADBAND DELIVERY (UK) JAN15
Department for Culture Media and Sport,Department for Culture Media and Sport,23/03/2015,Capital Grants to LAs,Broadband UK Capital+Programme,Leicestershire County Council,0030039461,"761,890.00",BDUK Superfast Britain milestone grant claim payment
Department for Culture Media and Sport,Department for Culture Media and Sport,23/03/2015,Other Consultancy,Broadband Delivery UK (Admin),Analysys Mason Ltd,0030039462,"30,000.00",ANALYSYS FINAL INV PROJECT BOLT
Department for Culture Media and Sport,Department for Culture Media and Sport,23/03/2015,VAT-Recoverable Contracted-Out,Misc Balance Sheet,Analysys Mason Ltd,0030039462,"6,000.00",ANALYSYS FINAL INV PROJECT BOLT
Department for Culture Media and Sport,Department for Culture Media and Sport,23/03/2015,Capital Grant Private Sector,Grant support to NFTS,National Film & Television School,0050001646,"225,500.00",NFTS GIA MARCH 15
Department for Culture Media and Sport,Department for Culture Media and Sport,24/03/2015,VAT-Recoverable Contracted-Out,Misc Balance Sheet,EC Harris Solutions Ltd,0030039525,"8,242.12",Application for Payment Jan 2015
Department for Culture Media and Sport,Department for Culture Media and Sport,24/03/2015,Works Manager Fees,State Ceremonials Prog Costs,EC Harris Solutions Ltd,0030039525,"41,210.57",Application for Payment Jan 2015
Department for Culture Media and Sport,Department for Culture Media and Sport,24/03/2015,Current Grants Private Sector,GEO Other Ongoing Programmes,South West Grid for Learning,0030039530,"28,048.00",REVENGE PORN HELPLINE PHASE 1 PAYMENT
Department for Culture Media and Sport,Department for Culture Media and Sport,24/03/2015,Grant to BBC:Home Broadcasting,Home Broadcasting:Grant to BBC,British Broadcasting Corporation,0050001672,"21,000,000.00",BBC GIA MARCH 2015 PT5
Department for Culture Media and Sport,Department for Culture Media and Sport,25/03/2015,Capital Grants to LAs,Broadband UK Capital+Programme,Cambridgeshire CC,0030039531,"1,500,000.00",BDUK Superfast Britain milestone grant claim payment
Department for Culture Media and Sport,Department for Culture Media and Sport,25/03/2015,Current Grants to LAs,GEO Other Ongoing Programmes,Cambridgeshire CC,0030039544,"58,734.51",19.3.15 GEO WOMEN & BBAND CLAIM
Department for Culture Media and Sport,Department for Culture Media and Sport,25/03/2015,DCMS-Wolfson Museums & Gallery Improvement Fund,Misc Balance Sheet,Leicester Arts & Museums Service,0030039553,"69,000.00",Wolfson Grant Round 2; 1 March 2015
Department for Culture Media and Sport,Department for Culture Media and Sport,25/03/2015,DCMS-Wolfson Museums & Gallery Improvement Fund,Misc Balance Sheet,Fitzwilliam Museum,0030039558,"175,000.00",WOLFSON GRANT ROUND 2 MAR15
Department for Culture Media and Sport,Department for Culture Media and Sport,25/03/2015,DCMS-Wolfson Museums & Gallery Improvement Fund,Misc Balance Sheet,University of Cambridge,0030039559,"187,500.00",WOLFSON GRANT ROUND 2 FEB15
Department for Culture Media and Sport,Department for Culture Media and Sport,26/03/2015,Research,EAU Policy Research + Eval,The Arts & Humanities Research Council,0030039566,"74,196.00",AHRC Cultural Value Project
Department for Culture Media and Sport,Department for Culture Media and Sport,26/03/2015,Research,Broadband UK Capital+Programme,Satellite Internet,0030039570,"23,854.17",BDUK Market Test Pilots milestone payment
Department for Culture Media and Sport,Department for Culture Media and Sport,26/03/2015,VAT-Recoverable Contracted-Out,Misc Balance Sheet,Satellite Internet,0030039570,"4,770.83",BDUK MTP-/M9/FEB
Department for Culture Media and Sport,Department for Culture Media and Sport,26/03/2015,Capital Grant Private Sector,Broadband UK Capital+Programme,Cybermoor Services Ltd,0030039571,"54,545.00",BDUK Market Test Pilots milestone payment
Department for Culture Media and Sport,Department for Culture Media and Sport,26/03/2015,Research,EAU Policy Research + Eval,Office for National Statistics,0030039573,"85,329.00",IPS SURVEY FEES  2014
Department for Culture Media and Sport,Department for Culture Media and Sport,26/03/2015,VAT-Recoverable Contracted-Out,Misc Balance Sheet,Office for National Statistics,0030039573,"17,065.80",IPS SURVEY FEES  2014
Department for Culture Media and Sport,Department for Culture Media and Sport,26/03/2015,Grant to OGD (Capital),Spectrum Clearance Programme,Department for Transport (DFT),0030039625,"3,079,699.84",Radar Remediation works at airports for spectrum realllocation - Actual spend for 2012/13 and 2013/14
Department for Culture Media and Sport,Department for Culture Media and Sport,26/03/2015,T&S UK (Officials only),Procurement,Redfern Travel Limited,0030039628,"32,502.67",Travel Summary & Recovery - Jan-2015
Department for Culture Media and Sport,Department for Culture Media and Sport,26/03/2015,T&S UK (Officials only),Procurement,Redfern Travel Limited,0030039629,"51,330.23",Travel Summary & Recovery Feb-2015
Department for Culture Media and Sport,Department for Culture Media and Sport,27/03/2015,DCMS-Wolfson Museums & Gallery Improvement Fund,Misc Balance Sheet,Manchester City Galleries Trust,0030039633,"135,000.00",MCG WOLFSON ROUND 2 MAR 2015
Department for Culture Media and Sport,Department for Culture Media and Sport,27/03/2015,Current Grants Private Sector,Listed Places of Worship Grants,Topmark Claims Management Ltd,0030039638,"647,000.00",Funding for LPW 180315_260315
Department for Culture Media and Sport,Department for Culture Media and Sport,27/03/2015,Capital Grants to LAs,Broadband UK Capital+Programme,Somerset County Council,0030039654,"7,489,036.00",BDUK Superfast Britain milestone grant claim payment
Department for Culture Media and Sport,Department for Culture Media and Sport,27/03/2015,Capital Grant Private Sector,Grant support to NFTS,National Film & Television School,0050001677,"500,000.00",NFTS GIA MARCH 15 Additional
Department for Culture Media and Sport,Department for Culture Media and Sport,30/03/2015,Temp staff Interim managers,Broadband Delivery UK (Admin),Capita Bus Services (Interim Staff),0030039615,"32,448.22",Specialist advice 16/08/14 - 22/11/14
Department for Culture Media and Sport,Department for Culture Media and Sport,30/03/2015,Grant to OGD (Resource),Oth Creative Industries Progs,Department for Education,30039655,"3,558,093.00",Contribution to grant to Book Trust
Department for Culture Media and Sport,Department for Culture Media and Sport,30/03/2015,Other Programme Procurement,GEO Other Ongoing Programmes,GALOP,0030039657,"33,165.00",GUIDANCE FOR ONLINE BULLYING & HARRASMEN
Department for Culture Media and Sport,Department for Culture Media and Sport,30/03/2015,Research,EAU Policy Research + Eval,CIPFA Business Ltd,0030039661,"40,185.00",CIPFA stats public library profiles
Department for Culture Media and Sport,Department for Culture Media and Sport,30/03/2015,VAT-Recoverable Contracted-Out,Misc Balance Sheet,CIPFA Business Ltd,0030039661,"8,037.00",CIPFA stats public library profiles
Department for Culture Media and Sport,Department for Culture Media and Sport,30/03/2015,Capital Grant Private Sector,Broadband UK Capital+Programme,Arqiva Ltd,0030039663,"163,972.00",Mobile Infrastructure Project Grant Claim: February 2015
Department for Culture Media and Sport,Department for Culture Media and Sport,30/03/2015,Grant to OGD (Resource),Other Sports Support(excl ISB),The British Council,0030039664,"240,000.00",BRITISH COUNCIL EGYPT COLUMBIA BRAZIL
Department for Culture Media and Sport,Department for Culture Media and Sport,30/03/2015,Current Grants Private Sector,GEO Other Ongoing Programmes,Local Government Association,0030039671,"41,315.67",BE A COUNCILLOR CAMPAIGN MAR 15
Department for Culture Media and Sport,Department for Culture Media and Sport,30/03/2015,Publicity,BDUK Marketing in Admin Costs,Carat UK,0030039672,"77,695.02",Media buying for BDUK National Marketing Campaign
Department for Culture Media and Sport,Department for Culture Media and Sport,30/03/2015,VAT-Recoverable Contracted-Out,Misc Balance Sheet,Carat UK,0030039672,"15,523.93",Media buying for BDUK National Marketing Campaign
Department for Culture Media and Sport,Department for Culture Media and Sport,30/03/2015,Publicity,BDUK Marketing in Admin Costs,Carat UK,0030039674,"126,343.16",Media buying for BDUK National Marketing Campaign
Department for Culture Media and Sport,Department for Culture Media and Sport,30/03/2015,VAT-Recoverable Contracted-Out,Misc Balance Sheet,Carat UK,0030039674,"25,244.15",Media buying for BDUK National Marketing Campaign
Department for Culture Media and Sport,Department for Culture Media and Sport,30/03/2015,Publicity,BDUK Marketing in Admin Costs,Carat UK,0030039675,"44,819.98",Media buying for BDUK National Marketing Campaign
Department for Culture Media and Sport,Department for Culture Media and Sport,30/03/2015,VAT-Recoverable Contracted-Out,Misc Balance Sheet,Carat UK,0030039675,"8,955.32",Media buying for BDUK National Marketing Campaign
Department for Culture Media and Sport,Department for Culture Media and Sport,30/03/2015,Building Maintenance,Estates & Property Services,Atos IT Services UK Limited,0030039676,"25,237.55",DCMS NEW SERVICE
Department for Culture Media and Sport,Department for Culture Media and Sport,30/03/2015,Current Grants Private Sector,Creative Skillset,Creative Skillset SIF,0030039681,"2,790,005.10",Skills investment fund: Grant Claim March 2015
Department for Culture Media and Sport,Department for Culture Media and Sport,30/03/2015,Grant-in-Aid (DCMS NDPBs),GIA Museums & Galleries,National Gallery,0050001683,"900,000.00",NG_GIA_MAR15 revised
Department for Culture Media and Sport,Department for Culture Media and Sport,31/03/2015,Capital Grant Private Sector,DAB Digital Radio,Now Digital Limited,0030039596,"131,101.00",now Dig. DL000007/interim Wolv. & Shrop
Department for Culture Media and Sport,Department for Culture Media and Sport,31/03/2015,Capital Grant Private Sector,DAB Digital Radio,Now Digital Limited,0030039598,"126,712.00",Now Dig. DL000044/I Berkshire & N Hampsh
Department for Culture Media and Sport,Department for Culture Media and Sport,31/03/2015,Capital Grant Private Sector,DAB Digital Radio,Now Digital Limited,0030039600,"76,560.00",Now Dig. DL000014/I Bristol & Bath
Department for Culture Media and Sport,Department for Culture Media and Sport,31/03/2015,Capital Grant Private Sector,DAB Digital Radio,Now Digital Limited,0030039602,"101,657.00",Now Dig. DL000033-2/I Swindon
Department for Culture Media and Sport,Department for Culture Media and Sport,31/03/2015,Capital Grant Private Sector,DAB Digital Radio,Now Digital Limited,0030039604,"36,584.00",Now Dig. DL000052/I Oxfordshire
Department for Culture Media and Sport,Department for Culture Media and Sport,31/03/2015,Capital Grant Private Sector,DAB Digital Radio,Now Digital Limited,0030039606,"39,976.00",Now Dig. DL000030-1/I N Devon
Department for Culture Media and Sport,Department for Culture Media and Sport,31/03/2015,Capital Grant Private Sector,DAB Digital Radio,Now Digital Limited,0030039608,"187,705.00",Now Dig. DL000030-2/I Exeter & Torbay
Department for Culture Media and Sport,Department for Culture Media and Sport,31/03/2015,Capital Grant Private Sector,DAB Digital Radio,Now Digital Limited,0030039610,"103,299.00",Now Dig. DL000045/I  Cambridge
Department for Culture Media and Sport,Department for Culture Media and Sport,31/03/2015,Capital Grant Private Sector,DAB Digital Radio,Now Digital Limited,0030039613,"54,876.00",Now Dig. DL000051/I  Northamptonshire
Department for Culture Media and Sport,Department for Culture Media and Sport,31/03/2015,Capital Grant Private Sector,DAB Digital Radio,Now Digital Limited,0030039616,"58,363.00",Now Dig. DL000015/I Coventry
Department for Culture Media and Sport,Department for Culture Media and Sport,31/03/2015,Capital Grant Private Sector,DAB Digital Radio,Now Digital Limited,0030039617,"144,260.00",Now Dig. DL000038/I   Norfolk
Department for Culture Media and Sport,Department for Culture Media and Sport,31/03/2015,Capital Grant Private Sector,DAB Digital Radio,Now Digital Limited,0030039618,"30,489.00","Now Dig. DL000047/I Herts., Beds. & Buck"
Department for Culture Media and Sport,Department for Culture Media and Sport,31/03/2015,Capital Grant Private Sector,DAB Digital Radio,Now Digital Limited,0030039619,"98,244.00",NowDigital DL000028/I  Bournemouth
Department for Culture Media and Sport,Department for Culture Media and Sport,31/03/2015,Capital Grant Private Sector,DAB Digital Radio,Now Digital Limited,0030039620,"159,925.00",Now Dig. DL000035/I  S Hampshire
Department for Culture Media and Sport,Department for Culture Media and Sport,31/03/2015,Capital Grant Private Sector,DAB Digital Radio,Now Digital Limited,0030039621,"275,211.00",Now Dig.   DL000040/I  Sussex
Department for Culture Media and Sport,Department for Culture Media and Sport,31/03/2015,Capital Grant Private Sector,DAB Digital Radio,Now Digital Limited,0030039622,"236,172.00",Now Digital DL000042/I  Kent
Department for Culture Media and Sport,Department for Culture Media and Sport,31/03/2015,Capital Grant Private Sector,DAB Digital Radio,Now Digital Limited,0030039623,"128,044.00",Now ig. DL000008-2/I Cardiff & Newport 2
Department for Culture Media and Sport,Department for Culture Media and Sport,31/03/2015,Capital Grant Private Sector,DAB Digital Radio,Now Digital Limited,0030039624,"68,717.00",Now Dig. DL000008-1/Final Cardiff &Npt1
Department for Culture Media and Sport,Department for Culture Media and Sport,31/03/2015,National Non-Domestic Rates,Estates & Property Services,London Borough of Camden,0030039673,"53,865.00",BUSINESS RATES FOR 2ND FLOOR WEST
Department for Culture Media and Sport,Department for Culture Media and Sport,31/03/2015,VAT-Recoverable Contracted-Out,Misc Balance Sheet,EC Harris Solutions Ltd,0030039688,"12,321.48",CEREMONIAL EVENT MANAGEMENT SERVICES
Department for Culture Media and Sport,Department for Culture Media and Sport,31/03/2015,Works Manager Fees,State Ceremonials Prog Costs,EC Harris Solutions Ltd,0030039688,"61,607.40",CEREMONIAL EVENT MANAGEMENT SERVICES
Department for Culture Media and Sport,Department for Culture Media and Sport,31/03/2015,Capital Grants to LAs,Broadband UK Capital+Programme,Cardiff County Council,0030039693,"77,957.19",BDUK Superconnected Cities Connection Vouchers Claim
Department for Culture Media and Sport,Department for Culture Media and Sport,31/03/2015,Capital Grants to LAs,Broadband UK Capital+Programme,Northumberland County Council,0030039694,"924,194.00",BDUK Superfast Britain milestone grant claim payment
Department for Culture Media and Sport,Department for Culture Media and Sport,31/03/2015,Capital Grants to LAs,Broadband UK Capital+Programme,Birmingham City Council,0030039695,"387,960.00",BDUK Superconnected Cities WIFI grant
Department for Culture Media and Sport,Department for Culture Media and Sport,31/03/2015,Capital Grants to LAs,Broadband UK Capital+Programme,East Riding of Yorkshire Council,0030039696,"767,747.00",BDUK Superfast Britain milestone grant claim payment
Department for Culture Media and Sport,Department for Culture Media and Sport,31/03/2015,Capital Grants to LAs,Broadband UK Capital+Programme,Newcastle City Council,0030039697,"297,986.00",BDUK Superfast Britain milestone grant claim payment
Department for Culture Media and Sport,Department for Culture Media and Sport,31/03/2015,Capital Grants to LAs,Broadband UK Capital+Programme,Manchester City Council,0030039698,"1,963,539.00",BDUK Superconnected Cities WIFI grant
Department for Culture Media and Sport,Department for Culture Media and Sport,31/03/2015,Capital Grants to LAs,Broadband UK Capital+Programme,Derby City Council,0030039712,"29,593.00",BDUK Superconnected Cities Connection Vouchers Claim
Department for Culture Media and Sport,Department for Culture Media and Sport,31/03/2015,Grant to OGD (Resource),Broadband Delivery UK (Admin),Cabinet Office (Citi Tr),0030039713,"100,000.00",CONTR TO CABINET OFFICE PORTFOLIO PACKAG
Department for Culture Media and Sport,Department for Culture Media and Sport,31/03/2015,Oth Professional Services Prog,ODA Residuary Functions,Turner & Townsend,0030039714,"41,100.00",ODA-Commercial Services Framework
Department for Culture Media and Sport,Department for Culture Media and Sport,31/03/2015,Oth Professional Services Prog,ODA Residuary Functions,Turner & Townsend,0030039715,"37,860.00",ODA_168 February T&S fees
Department for Culture Media and Sport,Department for Culture Media and Sport,31/03/2015,Oth Professional Services Prog,ODA Residuary Functions,Turner & Townsend,0030039716,"44,610.00",ODA_163 January T&S fees
Department for Culture Media and Sport,Department for Culture Media and Sport,31/03/2015,Oth Professional Services Prog,ODA Residuary Functions,Turner & Townsend,0030039717,"32,280.00",ODA_164 December T&S fees
